[Event "FIDE U16 Olympiad_boards_1-80"]
[Site "Eindhoven, Netherlands"]
[Date "2023.08.13"]
[Round "1.73"]
[White "Chunsukon, Viritpol"]
[Black "Smeets, Kobe"]
[Result "0-1"]
[TimeControl "2700+10"]
[WhiteElo "1542"]
[BlackElo "2193"]

1. e4 {[%clk 00:45:17]} {[%emt 00:00:02]} c5 {[%clk 00:45:18]} {[%emt
00:00:02]} 2. Ne2 {[%clk 00:45:17]} {[%emt 00:00:10]} Nc6 {[%clk 00:45:19]}
{[%emt 00:00:09]} 3. Nbc3 {[%clk 00:45:26]} {[%emt 00:00:02]} e6 {[%clk
00:45:15]} {[%emt 00:00:13]} 4. g3 {[%clk 00:45:33]} {[%emt 00:00:03]} Nf6
{[%clk 00:44:23]} {[%emt 00:01:01]} 5. Bg2 {[%clk 00:45:41]} {[%emt 00:00:03]}
d5 {[%clk 00:44:02]} {[%emt 00:00:31]} 6. exd5 {[%clk 00:45:49]} {[%emt
00:00:02]} exd5 {[%clk 00:44:11]} {[%emt 00:00:02]} 7. d4 {[%clk 00:45:38]}
{[%emt 00:00:21]} cxd4 {[%clk 00:42:36]} {[%emt 00:01:44]} 8. Nxd4 {[%clk
00:45:46]} {[%emt 00:00:02]} Be7 {[%clk 00:33:56]} {[%emt 00:08:50]} 9. O-O
{[%clk 00:45:47]} {[%emt 00:00:09]} O-O {[%clk 00:34:04]} {[%emt 00:00:02]} 10.
Re1 {[%clk 00:45:03]} {[%emt 00:00:55]} h6 {[%clk 00:30:02]} {[%emt 00:04:11]}
11. Be3 {[%clk 00:40:09]} {[%emt 00:05:04]} Bg4 {[%clk 00:29:29]} {[%emt
00:00:43]} 12. Nce2 {[%clk 00:37:41]} {[%emt 00:02:39]} Rc8 {[%clk 00:29:05]}
{[%emt 00:00:33]} 13. c3 {[%clk 00:36:52]} {[%emt 00:01:00]} Ne5 {[%clk
00:28:54]} {[%emt 00:00:20]} 14. h3 {[%clk 00:35:39]} {[%emt 00:01:24]} Bd7
{[%clk 00:26:41]} {[%emt 00:02:22]} 15. Nf4 {[%clk 00:34:37]} {[%emt 00:01:13]}
Nc4 {[%clk 00:25:16]} {[%emt 00:01:35]} 16. Bc1 {[%clk 00:32:52]} {[%emt
00:01:55]} Nb6 {[%clk 00:23:36]} {[%emt 00:01:50]} 17. Nh5 {[%clk 00:27:13]}
{[%emt 00:05:48]} Bd6 {[%clk 00:19:23]} {[%emt 00:04:22]} 18. Nxf6+ {[%clk
00:23:26]} {[%emt 00:03:58]} Qxf6 {[%clk 00:19:31]} {[%emt 00:00:02]} 19. Qh5
{[%clk 00:19:38]} {[%emt 00:03:58]} Rfe8 {[%clk 00:19:13]} {[%emt 00:00:28]} 20.
Be3 {[%clk 00:17:47]} {[%emt 00:02:02]} Be5 {[%clk 00:19:22]} 21. Qf3 {[%clk
00:14:37]} {[%emt 00:03:19]} Qg6 {[%clk 00:18:37]} {[%emt 00:00:55]} 22. Nb3
{[%clk 00:13:59]} {[%emt 00:00:49]} Bc6 {[%clk 00:17:48]} {[%emt 00:00:58]} 23.
Bd4 {[%clk 00:13:12]} {[%emt 00:00:57]} Nc4 {[%clk 00:16:07]} {[%emt 00:01:51]}
24. Re2 {[%clk 00:07:02]} {[%emt 00:06:19]} Bxd4 {[%clk 00:15:15]} {[%emt
00:01:03]} 25. Nxd4 {[%clk 00:06:27]} {[%emt 00:00:45]} Rxe2 {[%clk 00:15:24]}
{[%emt 00:00:01]} 26. Qxe2 {[%clk 00:06:36]} {[%emt 00:00:02]} Re8 {[%clk
00:15:26]} {[%emt 00:00:08]} 27. Qc2 {[%clk 00:06:30]} {[%emt 00:00:16]} Qxc2
{[%clk 00:15:34]} {[%emt 00:00:02]} 28. Nxc2 {[%clk 00:06:37]} {[%emt
00:00:02]} Re2 {[%clk 00:15:01]} {[%emt 00:00:43]} 29. Nb4 {[%clk 00:05:18]}
{[%emt 00:01:30]} Rxb2 {[%clk 00:14:40]} {[%emt 00:00:30]} 30. Nxd5 {[%clk
00:05:16]} {[%emt 00:00:12]} Bxd5 {[%clk 00:14:14]} {[%emt 00:00:36]} 31. Bxd5
{[%clk 00:05:20]} {[%emt 00:00:06]} b5 {[%clk 00:13:15]} {[%emt 00:01:09]} 32.
Bxc4 {[%clk 00:03:53]} {[%emt 00:01:37]} bxc4 {[%clk 00:13:23]} {[%emt
00:00:02]} 33. Rd1 {[%clk 00:03:57]} {[%emt 00:00:06]} Rxa2 {[%clk 00:13:19]}
{[%emt 00:00:14]} 34. Rd8+ {[%clk 00:04:06]} {[%emt 00:00:01]} Kh7 {[%clk
00:13:21]} {[%emt 00:00:09]} 35. Rc8 {[%clk 00:04:06]} {[%emt 00:00:10]} Ra4
{[%clk 00:12:45]} {[%emt 00:00:45]} 36. Kg2 {[%clk 00:04:03]} {[%emt 00:00:14]}
Kg6 {[%clk 00:12:53]} {[%emt 00:00:02]} 37. Rc6+ {[%clk 00:04:04]} {[%emt
00:00:09]} Kf5 {[%clk 00:12:55]} {[%emt 00:00:07]} 38. Kf3 {[%clk 00:04:13]}
{[%emt 00:00:02]} Ke5 {[%clk 00:12:50]} {[%emt 00:00:14]} 39. Ke3 {[%clk
00:03:52]} {[%emt 00:00:31]} Kd5 {[%clk 00:12:18]} {[%emt 00:00:42]} 40. Rc7
{[%clk 00:04:01]} {[%emt 00:00:02]} Ra3 {[%clk 00:11:53]} {[%emt 00:00:35]} 41.
Kd2 {[%clk 00:00:56]} {[%emt 00:03:15]} Ra2+ {[%clk 00:11:40]} {[%emt
00:00:22]} 42. Ke1 {[%clk 00:00:59]} {[%emt 00:00:07]} f5 {[%clk 00:08:45]}
{[%emt 00:03:05]} 43. Rxg7 {[%clk 00:00:45]} {[%emt 00:00:25]} Ke4 {[%clk
00:08:54]} 44. Rd7 {[%clk 00:00:37]} {[%emt 00:00:18]} Kf3 {[%clk 00:08:20]}
{[%emt 00:00:43]} 45. Rd4 {[%clk 00:00:19]} {[%emt 00:00:29]} Re2+ {[%clk
00:08:28]} {[%emt 00:00:02]} 46. Kd1 {[%clk 00:00:22]} {[%emt 00:00:05]} Rxf2
{[%clk 00:08:32]} {[%emt 00:00:07]} 47. Rxc4 {[%clk 00:00:26]} {[%emt
00:00:07]} Kxg3 {[%clk 00:08:36]} {[%emt 00:00:06]} 48. h4 {[%clk 00:00:25]}
{[%emt 00:00:10]} f4 {[%clk 00:08:44]} {[%emt 00:00:02]} 49. Ke1 {[%clk
00:00:31]} {[%emt 00:00:05]} Ra2 {[%clk 00:08:41]} {[%emt 00:00:12]} 50. Rd4
{[%clk 00:00:24]} {[%emt 00:00:18]} f3 {[%clk 00:08:39]} {[%emt 00:00:11]} 51.
Rd3 {[%clk 00:00:19]} {[%emt 00:00:15]} Kg2 {[%clk 00:08:47]} {[%emt 00:00:02]}
52. Rd1 {[%clk 00:00:13]} {[%emt 00:00:16]} f2# {[%clk 00:08:54]} {[%emt
00:00:04]} 0-1

[Event "FIDE U16 Olympiad_boards_1-80"]
[Site "Eindhoven, Netherlands"]
[Date "2023.08.13"]
[Round "1.74"]
[White "Labruyere, Roger"]
[Black "Chiravanich, Pathee"]
[Result "1-0"]
[TimeControl "2700+10"]
[WhiteElo "2181"]
[BlackElo "1523"]

1. e4 {[%clk 00:45:19]} {[%emt 00:00:01]} c5 {[%clk 00:45:18]} {[%emt
00:00:03]} 2. Nf3 {[%clk 00:45:27]} d6 {[%clk 00:45:26]} {[%emt 00:00:03]} 3.
Bb5+ {[%clk 00:45:36]} {[%emt 00:00:01]} Bd7 {[%clk 00:45:33]} {[%emt
00:00:02]} 4. Bxd7+ {[%clk 00:45:44]} {[%emt 00:00:02]} Qxd7 {[%clk 00:45:37]}
{[%emt 00:00:07]} 5. c4 {[%clk 00:45:52]} {[%emt 00:00:01]} Nf6 {[%clk
00:45:35]} {[%emt 00:00:12]} 6. Nc3 {[%clk 00:46:00]} {[%emt 00:00:02]} Nc6
{[%clk 00:45:34]} {[%emt 00:00:10]} 7. d4 {[%clk 00:46:08]} {[%emt 00:00:03]}
cxd4 {[%clk 00:45:39]} {[%emt 00:00:05]} 8. Nxd4 {[%clk 00:44:24]} {[%emt
00:01:55]} e6 {[%clk 00:45:46]} {[%emt 00:00:02]} 9. Be3 {[%clk 00:44:22]}
{[%emt 00:00:12]} Be7 {[%clk 00:45:50]} {[%emt 00:00:06]} 10. O-O {[%clk
00:44:13]} {[%emt 00:00:19]} O-O {[%clk 00:45:51]} {[%emt 00:00:09]} 11. Rc1
{[%emt 00:02:21]} Rad8 {[%clk 00:43:48]} 12. f4 {[%clk 00:43:47]} {[%emt
00:00:39]} a6 {[%clk 00:40:39]} {[%emt 00:03:19]} 13. Qe2 {[%clk 00:43:39]}
{[%emt 00:00:17]} Rfe8 {[%clk 00:39:50]} {[%emt 00:00:59]} 14. Rfd1 {[%clk
00:43:46]} {[%emt 00:00:04]} Bf8 {[%clk 00:38:21]} {[%emt 00:01:39]} 15. Nf3
{[%clk 00:43:02]} {[%emt 00:00:53]} Qe7 {[%clk 00:36:28]} {[%emt 00:02:03]} 16.
h3 {[%clk 00:42:30]} {[%emt 00:00:42]} h6 {[%clk 00:33:22]} {[%emt 00:03:16]}
17. a3 {[%clk 00:40:28]} {[%emt 00:02:10]} Nh7 {[%clk 00:32:42]} {[%emt
00:00:51]} 18. b4 {[%clk 00:40:03]} {[%emt 00:00:35]} f5 {[%clk 00:32:10]}
{[%emt 00:00:42]} 19. b5 {[%clk 00:38:20]} {[%emt 00:01:54]} fxe4 {[%clk
00:30:58]} {[%emt 00:01:22]} 20. Nxe4 {[%clk 00:38:15]} {[%emt 00:00:14]} Nb8
{[%clk 00:30:29]} {[%emt 00:00:39]} 21. Bb6 {[%clk 00:37:55]} {[%emt 00:00:30]}
Rd7 {[%clk 00:30:20]} {[%emt 00:00:20]} 22. a4 {[%clk 00:36:18]} {[%emt
00:01:47]} Qf7 {[%clk 00:28:51]} {[%emt 00:01:39]} 23. Qe3 {[%clk 00:35:08]}
{[%emt 00:01:20]} e5 {[%clk 00:27:36]} {[%emt 00:01:25]} 24. fxe5 {[%clk
00:33:02]} {[%emt 00:02:16]} dxe5 {[%clk 00:27:43]} {[%emt 00:00:03]} 25. Rxd7
{[%clk 00:32:48]} {[%emt 00:00:24]} Nxd7 {[%clk 00:26:22]} {[%emt 00:01:30]} 26.
bxa6 {[%clk 00:32:55]} {[%emt 00:00:03]} bxa6 {[%clk 00:26:29]} {[%emt
00:00:04]} 27. c5 {[%clk 00:32:59]} {[%emt 00:00:06]} Nhf6 {[%clk 00:24:10]}
{[%emt 00:02:29]} 28. a5 {[%clk 00:32:43]} {[%emt 00:00:26]} Nd5 {[%clk
00:23:48]} {[%emt 00:00:32]} 29. Qb3 {[%clk 00:32:15]} {[%emt 00:00:38]} Kh8
{[%clk 00:22:39]} {[%emt 00:01:18]} 30. Rd1 {[%clk 00:31:42]} {[%emt 00:00:44]}
N7f6 {[%clk 00:20:27]} {[%emt 00:02:22]} 31. Nxf6 {[%clk 00:31:43]} {[%emt
00:00:09]} Qxf6 {[%clk 00:20:32]} {[%emt 00:00:05]} 32. Qxd5 {[%emt 00:00:26]}
e4 {[%clk 00:20:20]} 33. Nd4 {[%clk 00:31:47]} {[%emt 00:00:11]} e3 {[%clk
00:19:18]} {[%emt 00:01:14]} 34. Qf3 {[%clk 00:31:29]} {[%emt 00:00:28]} Qg5
{[%clk 00:18:12]} {[%emt 00:01:15]} 35. c6 {[%clk 00:30:25]} {[%emt 00:01:14]}
Bd6 {[%clk 00:16:57]} {[%emt 00:01:25]} 36. Ne2 {[%clk 00:28:32]} {[%emt
00:02:03]} Qe5 {[%clk 00:13:15]} {[%emt 00:03:51]} 37. g3 {[%clk 00:28:23]}
{[%emt 00:00:20]} Rf8 {[%clk 00:11:50]} {[%emt 00:01:36]} 38. Qxf8+ {[%clk
00:28:26]} {[%emt 00:00:05]} Bxf8 {[%clk 00:11:53]} {[%emt 00:00:08]} 39. c7
{[%clk 00:28:35]} Qf5 {[%clk 00:09:09]} {[%emt 00:02:54]} 40. Rf1 {[%clk
00:28:44]} Qc8 {[%clk 00:09:14]} {[%emt 00:00:05]} 41. Rc1 {[%clk 00:25:15]}
{[%emt 00:03:39]} Qf5 {[%clk 00:09:13]} {[%emt 00:00:10]} 42. Bxe3 {[%clk
00:25:02]} {[%emt 00:00:24]} Qf3 {[%clk 00:06:50]} {[%emt 00:02:33]} 43. Bf2
{[%clk 00:25:06]} {[%emt 00:00:06]} Qxe2 {[%clk 00:06:30]} {[%emt 00:00:31]} 44.
c8=Q {[%clk 00:25:13]} {[%emt 00:00:03]} Qf3 {[%clk 00:06:19]} {[%emt
00:00:20]} 45. Re1 {[%clk 00:24:47]} {[%emt 00:00:36]} Kh7 {[%clk 00:06:00]}
{[%emt 00:00:29]} 46. Qc2+ {[%clk 00:24:54]} {[%emt 00:00:03]} Kh8 {[%clk
00:05:32]} {[%emt 00:00:38]} 47. Qe4 {[%clk 00:25:02]} {[%emt 00:00:02]} Qf6
{[%clk 00:05:02]} {[%emt 00:00:40]} 48. Qf4 {[%clk 00:25:11]} {[%emt 00:00:01]}
Qd8 {[%clk 00:05:03]} {[%emt 00:00:09]} 49. Qf7 {[%clk 00:25:19]} {[%emt
00:00:02]} Kh7 {[%clk 00:04:52]} {[%emt 00:00:21]} 50. h4 {[%clk 00:25:29]} Bb4
{[%clk 00:03:11]} {[%emt 00:01:49]} 51. Re8 {[%clk 00:25:23]} {[%emt 00:00:16]}
Qd1+ {[%clk 00:03:19]} {[%emt 00:00:02]} 52. Kh2 {[%clk 00:25:24]} {[%emt
00:00:09]} Qc2 {[%clk 00:03:02]} {[%emt 00:00:28]} 53. Qg8+ {[%clk 00:25:32]}
{[%emt 00:00:02]} Kg6 {[%clk 00:03:10]} {[%emt 00:00:02]} 54. Re6+ {[%clk
00:25:41]} {[%emt 00:00:02]} Kh5 {[%clk 00:02:34]} {[%emt 00:00:45]} 55. Qf7+
{[%clk 00:25:48]} {[%emt 00:00:02]} 1-0

[Event "FIDE U16 Olympiad_boards_1-80"]
[Site "Eindhoven, Netherlands"]
[Date "2023.08.13"]
[Round "1.75"]
[White "Jitwichian, Pataradit"]
[Black "Arnold, Rhys"]
[Result "0-1"]
[TimeControl "2700+10"]
[WhiteElo "1229"]
[BlackElo "1803"]

1. d4 {[%clk 00:45:14]} {[%emt 00:00:05]} d5 {[%clk 00:45:19]} 2. Nf3 {[%clk
00:45:21]} {[%emt 00:00:02]} Nf6 {[%clk 00:45:28]} {[%emt 00:00:03]} 3. c4
{[%clk 00:45:11]} {[%emt 00:00:19]} e6 {[%clk 00:45:36]} {[%emt 00:00:02]} 4.
Nc3 {[%clk 00:44:44]} {[%emt 00:00:37]} a6 {[%clk 00:45:44]} {[%emt 00:00:02]}
5. cxd5 {[%clk 00:44:44]} {[%emt 00:00:10]} exd5 {[%clk 00:45:53]} 6. g3 {[%clk
00:44:31]} {[%emt 00:00:22]} Bd6 {[%clk 00:45:38]} {[%emt 00:00:26]} 7. Bg2
{[%clk 00:43:26]} {[%emt 00:01:15]} c6 {[%clk 00:45:21]} {[%emt 00:00:28]} 8.
O-O {[%clk 00:42:58]} {[%emt 00:00:37]} O-O {[%clk 00:45:29]} {[%emt 00:00:03]}
9. Bg5 {[%clk 00:42:05]} {[%emt 00:01:02]} h6 {[%clk 00:44:56]} {[%emt
00:00:43]} 10. Bxf6 {[%clk 00:42:08]} {[%emt 00:00:06]} Qxf6 {[%clk 00:45:05]}
{[%emt 00:00:02]} 11. Re1 {[%clk 00:38:46]} {[%emt 00:03:33]} Qd8 {[%clk
00:43:24]} {[%emt 00:01:50]} 12. Qc2 {[%clk 00:36:26]} {[%emt 00:02:29]} Be6
{[%clk 00:42:42]} {[%emt 00:00:52]} 13. Rad1 {[%clk 00:35:13]} {[%emt
00:01:24]} Nd7 {[%clk 00:41:38]} {[%emt 00:01:15]} 14. Nd2 {[%clk 00:30:48]}
{[%emt 00:04:35]} Nf6 {[%clk 00:40:10]} {[%emt 00:01:37]} 15. e4 {[%clk
00:30:36]} {[%emt 00:00:23]} dxe4 {[%clk 00:40:11]} {[%emt 00:00:09]} 16. Ndxe4
{[%clk 00:30:44]} {[%emt 00:00:01]} Nxe4 {[%clk 00:40:10]} {[%emt 00:00:11]} 17.
Nxe4 {[%clk 00:30:04]} {[%emt 00:00:50]} Bb4 {[%clk 00:40:16]} {[%emt
00:00:04]} 18. Nc3 {[%clk 00:30:13]} {[%emt 00:00:02]} Rc8 {[%clk 00:38:13]}
{[%emt 00:02:12]} 19. a3 {[%clk 00:29:50]} {[%emt 00:00:34]} Bxc3 {[%clk
00:35:37]} {[%emt 00:02:45]} 20. bxc3 {[%clk 00:29:57]} {[%emt 00:00:03]} Qa5
{[%clk 00:35:46]} {[%emt 00:00:02]} 21. Qb2 {[%clk 00:28:46]} {[%emt 00:01:20]}
b5 {[%clk 00:33:51]} {[%emt 00:02:06]} 22. Qb4 {[%clk 00:28:53]} {[%emt
00:00:03]} Qc7 {[%clk 00:33:51]} {[%emt 00:00:09]} 23. Re5 {[%clk 00:27:47]}
{[%emt 00:01:15]} Rfd8 {[%clk 00:33:55]} {[%emt 00:00:07]} 24. Rc5 {[%clk
00:27:21]} {[%emt 00:00:37]} Qb6 {[%clk 00:31:29]} {[%emt 00:02:35]} 25. c4
{[%clk 00:23:43]} {[%emt 00:03:48]} a5 {[%clk 00:31:11]} {[%emt 00:00:29]} 26.
Qb3 {[%clk 00:22:54]} {[%emt 00:00:58]} Rxd4 {[%clk 00:30:38]} {[%emt
00:00:43]} 27. Rxd4 {[%clk 00:20:30]} {[%emt 00:02:35]} Qxc5 {[%clk 00:30:46]}
{[%emt 00:00:01]} 28. Qe3 {[%clk 00:20:22]} {[%emt 00:00:18]} Qe7 {[%clk
00:29:11]} {[%emt 00:01:45]} 29. f4 {[%clk 00:18:40]} {[%emt 00:01:52]} Qf6
{[%clk 00:28:54]} {[%emt 00:00:28]} 30. Rd6 {[%clk 00:14:51]} {[%emt 00:03:58]}
bxc4 {[%clk 00:28:20]} {[%emt 00:00:44]} 31. Bxc6 {[%clk 00:13:40]} {[%emt
00:01:21]} Rb8 {[%clk 00:27:42]} {[%emt 00:00:49]} 32. Qd4 {[%clk 00:11:12]}
{[%emt 00:02:37]} Qxd4+ {[%clk 00:27:30]} {[%emt 00:00:22]} 33. Rxd4 {[%clk
00:11:21]} {[%emt 00:00:01]} c3 {[%clk 00:27:37]} {[%emt 00:00:04]} 34. Be4
{[%clk 00:11:18]} {[%emt 00:00:11]} Bb3 {[%clk 00:26:08]} {[%emt 00:01:40]} 35.
Rd7 {[%clk 00:10:23]} {[%emt 00:01:06]} Rc8 {[%clk 00:25:57]} {[%emt 00:00:21]}
36. Ra7 {[%clk 00:06:01]} {[%emt 00:04:32]} a4 {[%clk 00:25:59]} {[%emt
00:00:08]} 37. Bf5 {[%clk 00:04:41]} {[%emt 00:01:30]} c2 {[%clk 00:26:00]}
{[%emt 00:00:08]} 38. Bxc2 {[%clk 00:03:11]} {[%emt 00:01:40]} Bxc2 {[%clk
00:26:05]} {[%emt 00:00:06]} 39. Rb7 {[%clk 00:03:09]} {[%emt 00:00:11]} g6
{[%clk 00:26:01]} {[%emt 00:00:14]} 40. Kf2 {[%clk 00:03:16]} {[%emt 00:00:02]}
Bb3 {[%clk 00:26:07]} {[%emt 00:00:05]} 41. Ke3 {[%clk 00:03:16]} {[%emt
00:00:10]} Rc2 {[%clk 00:26:11]} {[%emt 00:00:06]} 42. Rb8+ {[%clk 00:02:52]}
{[%emt 00:00:35]} Kg7 {[%clk 00:26:19]} {[%emt 00:00:02]} 43. h4 {[%clk
00:02:44]} {[%emt 00:00:17]} Ra2 {[%clk 00:26:14]} {[%emt 00:00:15]} 44. g4
{[%clk 00:02:09]} {[%emt 00:00:46]} Rxa3 {[%clk 00:26:14]} {[%emt 00:00:10]} 45.
g5 {[%clk 00:02:15]} {[%emt 00:00:04]} hxg5 {[%clk 00:26:06]} {[%emt 00:00:18]}
46. hxg5 {[%clk 00:01:44]} {[%emt 00:00:41]} Be6+ {[%clk 00:26:14]} {[%emt
00:00:02]} 47. Kd2 {[%clk 00:01:33]} {[%emt 00:00:20]} Rf3 {[%clk 00:26:06]}
{[%emt 00:00:17]} 48. Kc2 {[%clk 00:01:32]} {[%emt 00:00:12]} a3 {[%clk
00:26:10]} {[%emt 00:00:07]} 49. Ra8 {[%clk 00:00:44]} {[%emt 00:00:58]} a2
{[%clk 00:26:13]} {[%emt 00:00:07]} 50. Kb2 {[%clk 00:00:53]} {[%emt 00:00:01]}
Rf2+ {[%clk 00:26:19]} {[%emt 00:00:03]} 51. Ka1 {[%clk 00:00:58]} {[%emt
00:00:05]} Rxf4 {[%clk 00:26:14]} {[%emt 00:00:15]} 52. Ra5 {[%clk 00:00:47]}
{[%emt 00:00:22]} Rf1+ {[%clk 00:26:20]} {[%emt 00:00:03]} 53. Kb2 {[%clk
00:00:55]} {[%emt 00:00:03]} a1=Q+ {[%clk 00:26:28]} {[%emt 00:00:02]} 54. Rxa1
{[%clk 00:01:03]} {[%emt 00:00:02]} Rxa1 {[%clk 00:26:36]} {[%emt 00:00:01]} 55.
Kxa1 {[%clk 00:01:12]} {[%emt 00:00:01]} f6 {[%clk 00:26:45]} {[%emt 00:00:02]}
0-1

[Event "FIDE U16 Olympiad_boards_1-80"]
[Site "Eindhoven, Netherlands"]
[Date "2023.08.13"]
[Round "1.76"]
[White "Gergin, Isafara"]
[Black "Kaewwattha, Natrada"]
[Result "0-1"]
[TimeControl "2700+10"]
[WhiteElo "1751"]
[BlackElo "1414"]

1. e4 {[%clk 00:45:19]} c6 {[%clk 00:45:18]} {[%emt 00:00:02]} 2. d4 {[%clk
00:45:25]} {[%emt 00:00:04]} d5 {[%clk 00:45:24]} {[%emt 00:00:05]} 3. Nc3
{[%clk 00:45:32]} {[%emt 00:00:03]} dxe4 {[%clk 00:45:28]} {[%emt 00:00:06]} 4.
Nxe4 {[%clk 00:45:39]} {[%emt 00:00:02]} Bf5 {[%clk 00:45:34]} {[%emt
00:00:04]} 5. Ng3 {[%clk 00:45:46]} {[%emt 00:00:03]} Bg6 {[%clk 00:45:43]} 6.
h4 {[%clk 00:45:39]} {[%emt 00:00:18]} h6 {[%clk 00:43:10]} {[%emt 00:02:42]} 7.
Nf3 {[%clk 00:45:38]} {[%emt 00:00:11]} Nd7 {[%clk 00:43:11]} {[%emt 00:00:09]}
8. h5 {[%clk 00:45:44]} {[%emt 00:00:04]} Bh7 {[%clk 00:43:19]} {[%emt
00:00:02]} 9. Bd3 {[%clk 00:45:48]} {[%emt 00:00:06]} Bxd3 {[%clk 00:43:26]}
{[%emt 00:00:03]} 10. Qxd3 {[%clk 00:45:56]} {[%emt 00:00:02]} e6 {[%clk
00:43:15]} {[%emt 00:00:21]} 11. Bd2 {[%clk 00:44:09]} {[%emt 00:01:57]} Ngf6
{[%clk 00:41:56]} {[%emt 00:01:29]} 12. O-O-O {[%clk 00:42:44]} {[%emt
00:01:35]} Be7 {[%clk 00:40:23]} {[%emt 00:01:43]} 13. Ne4 {[%clk 00:40:24]}
{[%emt 00:02:31]} Nxe4 {[%clk 00:33:36]} {[%emt 00:06:56]} 14. Qxe4 {[%clk
00:40:31]} {[%emt 00:00:03]} Nf6 {[%clk 00:33:44]} {[%emt 00:00:02]} 15. Qd3
{[%clk 00:40:35]} {[%emt 00:00:07]} Qb6 {[%clk 00:28:53]} {[%emt 00:05:01]} 16.
Ne5 {[%clk 00:33:55]} {[%emt 00:06:49]} Nd5 {[%clk 00:25:04]} {[%emt 00:03:58]}
17. Qf3 {[%clk 00:22:06]} {[%emt 00:12:00]} Bf6 {[%clk 00:21:45]} {[%emt
00:03:29]} 18. Bf4 {[%clk 00:21:01]} {[%emt 00:01:15]} Nxf4 {[%clk 00:16:35]}
{[%emt 00:05:19]} 19. c4 {[%clk 00:12:41]} {[%emt 00:08:31]} Qa5 {[%clk
00:05:09]} {[%emt 00:11:35]} 20. Kb1 {[%clk 00:10:29]} {[%emt 00:02:22]} Bxe5
{[%clk 00:05:07]} {[%emt 00:00:12]} 21. dxe5 {[%clk 00:10:17]} {[%emt
00:00:22]} Qxe5 {[%clk 00:05:07]} {[%emt 00:00:10]} 22. g3 {[%clk 00:09:18]}
{[%emt 00:01:10]} Qf5+ {[%clk 00:03:57]} {[%emt 00:01:20]} 23. Ka1 {[%clk
00:09:08]} {[%emt 00:00:20]} Nxh5 {[%clk 00:03:11]} {[%emt 00:00:55]} 24. Qxf5
{[%clk 00:08:56]} {[%emt 00:00:22]} exf5 {[%clk 00:03:20]} {[%emt 00:00:02]} 25.
Rxh5 {[%clk 00:09:05]} {[%emt 00:00:01]} g6 {[%clk 00:03:24]} {[%emt 00:00:06]}
26. Rhh1 {[%clk 00:09:02]} {[%emt 00:00:13]} Ke7 {[%clk 00:03:21]} {[%emt
00:00:12]} 27. Rhe1+ {[%clk 00:08:43]} {[%emt 00:00:29]} Kf6 {[%clk 00:03:30]}
{[%emt 00:00:01]} 28. Rd7 {[%clk 00:07:38]} {[%emt 00:01:15]} Rhe8 {[%clk
00:03:21]} {[%emt 00:00:20]} 29. Red1 {[%clk 00:07:36]} {[%emt 00:00:12]} Rab8
{[%clk 00:02:43]} {[%emt 00:00:47]} 30. Kb1 {[%clk 00:07:01]} {[%emt 00:00:45]}
Re2 {[%clk 00:02:46]} {[%emt 00:00:08]} 31. f4 {[%clk 00:05:40]} {[%emt
00:01:31]} Re3 {[%clk 00:02:30]} {[%emt 00:00:26]} 32. Rg1 {[%clk 00:03:50]}
{[%emt 00:02:00]} Ke6 {[%clk 00:02:27]} {[%emt 00:00:13]} 33. Rc7 {[%clk
00:02:34]} {[%emt 00:01:25]} g5 {[%clk 00:02:14]} {[%emt 00:00:23]} 34. fxg5
{[%clk 00:01:07]} {[%emt 00:01:37]} hxg5 {[%clk 00:02:15]} {[%emt 00:00:09]} 35.
Kc1 {[%clk 00:01:06]} {[%emt 00:00:11]} f4 {[%clk 00:01:50]} {[%emt 00:00:36]}
36. gxf4 {[%clk 00:00:50]} {[%emt 00:00:25]} gxf4 {[%clk 00:01:58]} {[%emt
00:00:02]} 37. Rf1 {[%clk 00:00:31]} {[%emt 00:00:29]} Re4 {[%clk 00:02:07]}
{[%emt 00:00:02]} 38. b3 {[%clk 00:00:40]} f5 {[%clk 00:01:49]} {[%emt
00:00:28]} 39. Kc2 {[%clk 00:00:40]} {[%emt 00:00:09]} Re2+ {[%clk 00:01:09]}
{[%emt 00:00:50]} 40. Kb1 {[%clk 00:00:30]} {[%emt 00:00:21]} Re4 {[%clk
00:00:52]} {[%emt 00:00:26]} 41. Kc2 {[%clk 00:00:37]} {[%emt 00:00:03]} Kd6
{[%clk 00:00:47]} {[%emt 00:00:16]} 42. Rf7 {[%clk 00:00:41]} {[%emt 00:00:05]}
Re2+ {[%clk 00:00:45]} {[%emt 00:00:12]} 43. Kb1 {[%clk 00:00:33]} {[%emt
00:00:18]} Ke6 {[%clk 00:00:32]} {[%emt 00:00:23]} 44. Rg7 {[%clk 00:00:38]}
{[%emt 00:00:06]} Rd8 {[%clk 00:00:28]} {[%emt 00:00:13]} 45. Rxb7 {[%clk
00:00:37]} {[%emt 00:00:11]} Rdd2 {[%clk 00:00:25]} {[%emt 00:00:14]} 46. Rxa7
{[%clk 00:00:31]} {[%emt 00:00:15]} Rf2 {[%clk 00:00:29]} {[%emt 00:00:07]} 47.
Rxf2 {[%clk 00:00:27]} {[%emt 00:00:13]} Rxf2 {[%clk 00:00:37]} {[%emt
00:00:03]} 48. Rh7 {[%clk 00:00:27]} {[%emt 00:00:09]} f3 {[%clk 00:00:33]}
{[%emt 00:00:15]} 49. Rh3 {[%clk 00:00:24]} {[%emt 00:00:13]} Rf1+ {[%clk
00:00:29]} {[%emt 00:00:13]} 50. Kb2 {[%clk 00:00:27]} {[%emt 00:00:08]} f2
{[%clk 00:00:34]} {[%emt 00:00:05]} 51. Re3+ {[%clk 00:00:27]} {[%emt
00:00:10]} Kf6 {[%clk 00:00:37]} {[%emt 00:00:07]} 52. Rf3 {[%clk 00:00:36]}
{[%emt 00:00:01]} Kg5 {[%clk 00:00:43]} {[%emt 00:00:04]} 53. Ka3 {[%clk
00:00:22]} {[%emt 00:00:24]} Kg4 {[%clk 00:00:51]} {[%emt 00:00:02]} 54. Rd3
{[%clk 00:00:13]} {[%emt 00:00:20]} Re1 {[%clk 00:00:54]} {[%emt 00:00:06]} 55.
Rd4+ {[%clk 00:00:20]} {[%emt 00:00:03]} f4 {[%clk 00:00:57]} {[%emt 00:00:07]}
56. Rd2 {[%clk 00:00:11]} {[%emt 00:00:19]} f1=Q {[%clk 00:00:56]} {[%emt
00:00:11]} 0-1